bitfinex-derivatives/quotes_SOLF0:USTF0_20250730
["timestamp","ask_amount","ask_price","bid_price","bid_amount"]
[1753865464134,3.13,181.42,181.4,3.1]
[1753865464337,4.60499471,181.5,181.4,3.1]
[1753865464338,3.13,181.41,181.4,3.1]
[1753865464535,2.71131941,181.48,181.39,8.22421941]
[1753865464733,4.60499471,181.5,181.39,5.81131941]
[1753865464734,2.71131941,181.46,181.39,5.81131941]
[1753865464931,3.13,181.44,181.39,5.81131941]
[1753865465334,3.13,181.42,181.4,3.1]
[1753865465538,3.13,181.41,181.4,3.1]
[1753865466135,2.71131941,181.46,181.39,2.71131941]
[1753865466335,3.13,181.4,181.39,5.81131941]
[1753865467241,3.13,181.41,181.4,3.1]
[1753865467436,2.71131941,181.48,181.39,2.71131941]
[1753865467637,3.13,181.42,181.41,3.1]
[1753865470136,3.13,181.46,181.43,3.1]
[1753865470337,3.13,181.44,181.41,5.81131941]
[1753865471338,3.13,181.44,181.41,11.32371941]
[1753865472238,2.71131941,181.46,181.39,2.71131941]
[1753865472434,3.13,181.45,181.39,120.29131941]
[1753865472838,3.13,181.45,181.39,123.39131941]
[1753865473231,5.5118,181.44,181.39,128.90421941]
[1753865473431,3.13,181.43,181.39,123.39131941]
[1753865473636,3.13,181.43,181.39,120.29131941]
[1753865473838,3.13,181.43,181.4,3.1]
[1753865474132,3.13,181.43,181.4,8.6126]
[1753865474536,5.5119,181.43,181.4,3.1]
[1753865474840,3.13,181.41,181.4,3.1]
[1753865475241,3.13,181.41,181.4,8.6128]
[1753865475442,3.13,181.41,181.4,3.1]
[1753865476640,3.13,181.41,181.4,8.6128]
[1753865476844,3.13,181.46,181.41,3.1]
[1753865477045,3.13,181.46,181.42,3.1]
[1753865477249,3.13,181.46,181.4,5.5128]
[1753865477442,3.13,181.46,181.4,8.6128]
[1753865477645,3.13,181.43,181.4,3.1]
[1753865478946,2.71131941,181.47,181.4,3.1]
[1753865479150,3.13,181.46,181.4,3.1]
[1753865480450,3.13,181.43,181.42,3.1]
[1753865482452,2.96,181.43,181.42,3.1]
[1753865483558,2.96,181.43,181.42,8.6122]
[1753865483755,2.96,181.45,181.42,8.6122]
[1753865484059,2.96,181.44,181.43,3.2]
[1753865484262,2.96,181.44,181.41,8.22371941]
[1753865484457,2.96,181.44,181.43,3.2]
[1753865485059,2.96,181.44,181.42,3.2]
[1753865485760,2.96,181.43,181.42,3.2]
[1753865487861,5.5116,181.44,181.41,8.22361941]
[1753865488168,2.96,181.42,181.41,11.42361941]
[1753865488763,2.96,181.44,181.43,3.2]
[1753865491064,7.05989822,181.44,181.43,3.2]
[1753865491567,7.05989822,181.44,181.42,5.5122]
[1753865491770,2.96,181.43,181.42,3.2]
[1753865492168,2.96,181.43,181.41,3.2]
[1753865493268,2.96,181.43,181.41,8.7123]
[1753865493467,2.96,181.42,181.41,8.7123]
[1753865493666,4.60499471,181.48,181.41,3.2]
[1753865493867,2.96,181.43,181.41,3.2]
[1753865494266,2.96,181.45,181.43,3.2]
[1753865495370,2.96,181.46,181.45,3.2]
[1753865495564,7.06119691,181.46,181.45,3.2]
[1753865495976,7.06119691,181.46,181.45,8.7113]
[1753865496164,7.06119691,181.46,181.45,3.2]
[1753865496368,7.06119691,181.46,181.44,5.91131941]
[1753865496569,2.96,181.45,181.44,11.42271941]
[1753865497778,2.96,181.45,181.44,5.5114]
[1753865498076,2.96,181.45,181.43,8.7119]
[1753865498275,2.96,181.45,181.43,5.5119]
[1753865498573,2.96,181.43,181.38,2.71131941]
[1753865500073,2.96,181.4,181.38,8.22451941]
[1753865500270,2.96,181.4,181.38,2.71131941]
[1753865500570,5.5119,181.43,181.38,2.71131941]
[1753865500768,5.5119,181.43,181.39,3.2]
[1753865501169,2.96,181.42,181.39,3.2]
[1753865501371,2.96,181.41,181.33,5.91131941]
[1753865501565,5.67131941,181.41,181.33,128.98611941]
[1753865501775,5.67131941,181.41,181.33,123.47131941]
[1753865501776,5.5136,181.38,181.33,123.47131941]
[1753865502074,2.96,181.37,181.35,5.5143]
[1753865502273,2.96,181.37,181.35,8.7143]
[1753865503176,2.96,181.37,181.34,5.5145]
[1753865503366,2.96,181.37,181.34,8.7145]
[1753865503572,2.96,181.37,181.34,3.2]
[1753865503771,2.96,181.37,181.34,8.7146]
[1753865503972,2.96,181.36,181.34,8.7146]
[1753865504377,2.96,181.36,181.33,5.91131941]
[1753865504678,2.96,181.35,181.34,3.2]
[1753865505177,2.96,181.35,181.34,8.7146]
[1753865506168,5.5132,181.39,181.35,5.5141]
[1753865506369,2.96,181.37,181.36,3.2]
[1753865506575,2.96,181.37,181.35,5.5141]
[1753865506875,2.96,181.37,181.35,8.7141]
[1753865507575,2.96,181.36,181.35,8.7141]
[1753865508678,2.96,181.37,181.36,8.714]
[1753865510780,2.96,181.37,181.35,3.2]
[1753865513379,3.06,181.37,181.36,3.08]
[1753865515587,3.06,181.37,181.36,8.594]
[1753865515783,3.06,181.4,181.37,3.08]
[1753865515984,3.06,181.4,181.38,3.08]
[1753865516178,5.513,181.4,181.38,3.08]
[1753865516388,3.06,181.39,181.38,3.08]
[1753865516883,8.5731,181.39,181.38,3.08]
[1753865517082,5.5131,181.39,181.36,123.0938]
[1753865517288,3.06,181.38,181.37,3.08]
[1753865518489,3.06,181.38,181.37,8.5937]
[1753865518887,2.71131941,181.45,181.37,5.79131941]
[1753865519088,3.06,181.4,181.38,3.08]
[1753865519791,3.06,181.4,181.39,8.5931]
[1753865520292,5.5121,181.43,181.4,5.5128]
[1753865520496,3.06,181.41,181.4,8.5928]
[1753865521787,16.55,181.57,181.4,8.5928]
[1753865521788,3.06,181.46,181.41,3.08]
[1753865521987,3.06,181.49,181.45,3.08]
[1753865522192,5.5106,181.48,181.45,3.08]
[1753865522392,3.06,181.47,181.45,8.5911]
[1753865522592,3.06,181.47,181.44,2.71131941]
[1753865522893,3.06,181.47,181.44,5.79131941]
[1753865523289,8.5707,181.47,181.44,11.30271941]
[1753865523491,2.71131941,181.52,181.44,5.79131941]
[1753865523492,3.06,181.46,181.44,5.79131941]
[1753865523790,3.06,181.45,181.44,5.79131941]
[1753865524996,3.06,181.45,181.44,11.30291941]
[1753865526697,3.06,181.45,181.44,8.5916]
[1753865528496,3.06,181.45,181.43,5.5118]
[1753865528694,3.06,181.45,181.43,3.08]
[1753865529001,3.06,181.49,181.44,3.08]
[1753865529205,3.06,181.47,181.43,5.5118]
[1753865529503,8.5709,181.47,181.43,5.5118]
[1753865529692,8.5709,181.47,181.43,8.5918]
[1753865529693,3.06,181.46,181.43,8.5918]
[1753865530294,3.06,181.46,181.44,3.08]
[1753865530799,3.06,181.47,181.43,3.08]
[1753865531499,3.06,181.46,181.45,3.08]
[1753865532006,3.06,181.46,181.45,8.5913]
[1753865532804,3.06,181.46,181.45,3.08]
[1753865534398,3.06,181.47,181.46,3.08]
[1753865536004,5.51,181.5,181.46,2.71131941]
[1753865536203,3.06,181.53,181.48,5.79131941]
[1753865536398,3.06,181.51,181.49,3.08]
[1753865536702,7.34184585,181.56,181.49,3.08]
[1753865536703,3.06,181.55,181.49,3.08]
[1753865536903,3.06,181.53,181.5,3.08]
[1753865537103,3.06,181.51,181.5,3.08]
[1753865537303,7.34184585,181.57,181.51,3.08]
[1753865537503,3.06,181.55,181.51,3.08]
[1753865537704,3.06,181.53,181.49,5.51]
[1753865537905,3.06,181.53,181.5,3.08]
[1753865538199,5.508,181.56,181.51,2.71131941]
[1753865538401,3.06,181.54,181.51,5.79131941]
[1753865539104,5.5089,181.53,181.51,3.08]
[1753865539304,2.71131941,181.56,181.48,2.71131941]
[1753865539510,3.06,181.53,181.46,2.71131941]
[1753865539704,5.5104,181.49,181.45,8.5911]
[1753865539901,3.06,181.48,181.45,8.5911]
[1753865540102,3.06,181.48,181.46,3.08]
[1753865540302,8.5706,181.48,181.46,3.08]
[1753865540498,3.06,181.47,181.44,3.08]
[1753865540901,8.5709,181.47,181.44,3.08]
[1753865541100,2.71131941,181.52,181.44,3.08]
[1753865541307,4.63052644,181.57,181.46,3.08]
[1753865541308,3.06,181.51,181.46,3.08]
[1753865541807,3.02,181.48,181.46,3.08]
[1753865541998,3.02,181.53,181.46,3.08]
[1753865542200,5.5099,181.5,181.46,5.5109]
[1753865542405,3.02,181.49,181.48,3.01]
[1753865542602,3.02,181.49,181.43,8.22291941]
[1753865543007,3.02,181.49,181.42,3.01]
[1753865543307,3.02,181.47,181.42,3.01]
[1753865543709,5.5119,181.44,181.4,5.72131941]
[1753865543916,3.02,181.43,181.42,3.01]
[1753865544513,8.5319,181.43,181.42,3.01]
[1753865544907,3.02,181.47,181.4,2.71131941]
[1753865545108,3.02,181.52,181.42,2.71131941]
[1753865545312,3.02,181.5,181.43,3.01]
[1753865545812,3.02,181.49,181.46,5.72131941]
[1753865546014,3.02,181.49,181.47,3.01]
[1753865546210,3.02,181.48,181.47,3.01]
[1753865546713,5.5097,181.51,181.47,8.5207]
[1753865546914,3.02,181.49,181.48,3.01]
[1753865547407,3.02,181.49,181.46,11.23221941]
[1753865547715,3.02,181.54,181.46,11.23221941]
[1753865548014,3.02,181.48,181.47,3.01]
[1753865549915,3.02,181.48,181.47,8.5207]
[1753865550915,3.02,181.48,181.47,3.01]
[1753865551114,3.02,181.52,181.45,2.71131941]
[1753865551616,3.02,181.51,181.45,5.72131941]
[1753865552114,2.71131941,181.53,181.45,8.22251941]
[1753865552415,7.06415766,181.52,181.45,11.23251941]
[1753865552718,3.02,181.48,181.46,3.01]
[1753865553013,3.02,181.47,181.46,3.01]
[1753865555117,8.5307,181.47,181.45,2.71131941]
[1753865555311,3.02,181.46,181.45,5.72131941]
[1753865556019,3.02,181.46,181.4,3.01]
[1753865557017,5.5117,181.44,181.4,8.5228]
[1753865557215,3.02,181.43,181.4,3.01]
[1753865558020,3.02,181.42,181.41,3.01]
[1753865558313,3.02,181.42,181.41,5.72131941]
[1753865558821,8.5317,181.44,181.41,11.23361941]
[1753865559021,5.5117,181.44,181.41,8.22361941]
[1753865559222,3.02,181.43,181.42,3.01]
[1753865559622,3.02,181.43,181.41,5.5123]
[1753865559821,5.5117,181.44,181.41,5.5123]
[1753865560022,3.02,181.42,181.41,8.5223]
[1753865561323,3.02,181.42,181.41,3.01]
[1753865562918,3.02,181.42,181.41,8.5225]
[1753865564621,3.02,181.43,181.42,3.01]
[1753865565215,3.02,181.42,181.4,5.5127]
[1753865565413,3.02,181.42,181.4,8.5227]
[1753865565923,3.02,181.41,181.4,8.5227]
[1753865567824,5.5119,181.43,181.4,8.5227]
[1753865568026,3.02,181.42,181.41,3.01]
[1753865569222,3.02,181.42,181.39,2.71131941]
[1753865569423,3.02,181.41,181.34,5.72131941]
[1753865569628,3.02,181.41,181.35,117.48]
[1753865569829,5.5133,181.39,181.35,117.48]
[1753865570127,3.02,181.37,181.36,3.01]
[1753865571318,3.18,181.41,181.32,9.20232307]
[1753865571624,3.18,181.39,181.32,120.46]
[1753865571826,5.5143,181.36,181.32,125.975]
[1753865572026,3.18,181.35,181.32,125.975]
[1753865572524,3.18,181.35,181.26,126.88803314]
[1753865572525,2.71131941,181.34,181.26,114.97439066]
[1753865572730,3.18,181.33,181.26,117.95439066]
[1753865573123,3.18,181.29,181.27,8.4967]
[1753865573322,3.18,181.28,181.27,8.4967]
[1753865573926,2.71131941,181.36,181.29,5.5161]
[1753865574229,3.18,181.35,181.3,2.98]
[1753865574425,3.18,181.35,181.3,8.4957]
[1753865574623,3.18,181.35,181.31,2.98]
[1753865575723,3.18,181.32,181.29,2.71131941]
[1753865575929,3.18,181.32,181.29,117.5]
[1753865576326,3.18,181.3,181.26,2.98]
[1753865576724,8.6961,181.3,181.26,8.4969]
[1753865576919,3.18,181.29,181.26,8.4969]
[1753865577229,3.18,181.29,181.26,2.98]
[1753865578030,8.6962,181.29,181.26,2.98]
[1753865578225,3.18,181.31,181.26,2.98]
[1753865578427,3.18,181.31,181.25,2.71131941]
[1753865578631,3.18,181.29,181.24,117.52]
[1753865578831,2.71131941,181.28,181.24,117.52]
[1753865579032,3.18,181.27,181.24,117.52]
[1753865579229,8.6974,181.25,181.24,117.52]
[1753865580133,3.18,181.25,181.24,117.52]
[1753865580323,2.71131941,181.27,181.19,2.98]
[1753865580527,2.71131941,181.23,181.17,2.98]
[1753865580725,3.18,181.22,181.17,2.98]
[1753865581229,2.71131941,181.25,181.17,2.71131941]
[1753865581436,2.71131941,181.27,181.2,2.98]
[1753865581634,3.18,181.26,181.21,120.62]
[1753865582432,2.71131941,181.27,181.21,120.62]
[1753865582633,3.18,181.26,181.21,120.62]
[1753865583334,3.18,181.24,181.21,117.64]
[1753865583537,3.18,181.24,181.19,117.68]
[1753865583931,5.5187,181.21,181.19,117.68]
[1753865584130,3.18,181.2,181.17,117.68]
[1753865584332,3.18,181.2,181.16,2.98]
[1753865584634,3.18,181.2,181.16,120.66]
[1753865584826,3.18,181.22,181.17,2.98]
[1753865585031,3.18,181.22,181.18,2.98]
[1753865585628,5.5189,181.21,181.18,2.98]
[1753865585828,3.18,181.2,181.18,2.98]
[1753865586026,3.18,181.19,181.18,2.98]
[1753865587135,3.18,181.21,181.18,2.98]
[1753865587336,3.18,181.2,181.18,2.98]
[1753865587536,3.18,181.2,181.19,2.98]
[1753865587736,3.18,181.21,181.18,2.98]
[1753865588333,2.71131941,181.25,181.19,2.98]
[1753865588527,3.18,181.2,181.19,120.72]
[1753865589035,3.18,181.2,181.19,126.2392]
[1753865589336,3.18,181.2,181.19,120.72]
[1753865590142,5.5181,181.23,181.2,8.4989]
[1753865590439,3.18,181.21,181.2,2.98]
[1753865591028,3.18,181.21,181.19,117.7]
[1753865591229,2.71131941,181.25,181.19,117.7]
[1753865591533,3.18,181.2,181.19,120.68]
[1753865592041,3.18,181.2,181.19,2.98]
[1753865592539,3.18,181.2,181.19,8.4992]
[1753865592728,3.18,181.23,181.18,117.7]
[1753865593038,3.18,181.23,181.19,2.71131941]
[1753865593238,3.18,181.23,181.2,2.98]
[1753865594139,3.18,181.23,181.22,2.98]
[1753865594538,3.18,181.23,181.21,5.5184]
[1753865594738,3.18,181.26,181.21,5.5184]
[1753865594937,3.18,181.26,181.21,8.4984]
[1753865595242,3.18,181.26,181.21,5.5184]
[1753865595541,3.18,181.26,181.22,2.98]
[1753865596240,5.5175,181.25,181.22,2.98]
[1753865596542,3.18,181.23,181.22,2.98]
[1753865598943,5.5175,181.25,181.21,5.5184]
[1753865599145,3.18,181.22,181.21,8.4984]
[1753865601247,3.18,181.22,181.21,2.98]
[1753865602241,3.18,181.22,181.21,8.4986]
[1753865603238,3.18,181.22,181.21,2.98]
[1753865603444,3.18,181.22,181.21,120.6]
[1753865604047,3.18,181.22,181.21,126.1186]
[1753865604950,2.98,181.24,181.22,8.6782]
[1753865605145,2.98,181.24,181.23,3.16]
[1753865605346,2.98,181.23,181.22,3.16]
[1753865607647,2.98,181.24,181.18,3.16]
[1753865607851,2.98,181.24,181.19,120.78]
[1753865608152,5.5182,181.23,181.19,126.299]
[1753865608353,2.98,181.22,181.19,126.299]
[1753865609252,8.4984,181.22,181.19,123.139]
[1753865609452,2.98,181.21,181.19,117.62]
[1753865610050,2.98,181.21,181.19,120.78]
[1753865610250,2.98,181.21,181.19,3.16]
[1753865610450,2.98,181.21,181.19,120.8]
[1753865610646,5.5181,181.23,181.19,126.3192]
[1753865610852,2.98,181.24,181.2,5.87131941]
[1753865611047,2.98,181.27,181.22,2.71131941]
[1753865611257,2.98,181.27,181.23,3.16]
[1753865611451,2.98,181.27,181.22,2.71131941]
[1753865611652,2.98,181.27,181.24,3.16]
[1753865612154,2.98,181.27,181.24,8.6774]
[1753865612352,2.98,181.27,181.23,3.16]
[1753865612752,5.517,181.27,181.23,8.6779]
[1753865612951,2.98,181.26,181.23,8.6779]
[1753865614653,2.98,181.26,181.24,3.16]
[1753865614954,2.98,181.25,181.24,3.16]
[1753865616244,2.98,181.25,181.23,5.5179]
[1753865616450,2.98,181.25,181.23,8.6779]
[1753865616749,2.98,181.24,181.23,8.6779]
[1753865617146,2.98,181.24,181.23,126.2979]
[1753865618252,2.98,181.24,181.23,120.78]
[1753865619156,7.34184585,181.3,181.23,120.78]
[1753865619353,2.98,181.25,181.23,117.62]
[1753865619553,5.5168,181.27,181.24,3.16]
[1753865619754,7.76678489,181.26,181.24,3.16]
[1753865620051,2.98,181.25,181.24,3.16]
[1753865621953,2.98,181.3,181.24,3.16]
[1753865622158,12.97608805,181.29,181.27,3.16]
[1753865622354,2.98,181.31,181.28,3.16]
[1753865622554,19.40875791,181.3,181.29,3.16]
[1753865623057,19.40875791,181.3,181.29,8.6762]
[1753865623259,2.98,181.3,181.29,8.6762]
[1753865623858,2.98,181.32,181.29,3.16]
[1753865624261,2.98,181.31,181.29,3.16]
[1753865624650,2.98,181.31,181.3,5.5156]
[1753865624949,2.98,181.31,181.3,8.6756]
[1753865626556,2.98,181.33,181.31,5.5154]
[1753865626754,2.98,181.32,181.31,8.6754]
[1753865626955,2.98,181.32,181.31,126.2754]
[1753865627659,2.98,181.35,181.32,3.16]
[1753865628161,2.98,181.39,181.33,3.16]
[1753865628559,5.5138,181.37,181.32,2.71131941]
[1753865628854,5.5138,181.37,181.34,3.16]
[1753865628855,2.98,181.36,181.34,3.16]
[1753865629256,2.98,181.36,181.35,3.16]
[1753865629656,5.5131,181.4,181.36,8.6739]
[1753865629862,4.05283524,181.39,181.36,8.6739]
[1753865630059,2.98,181.37,181.36,5.5139]
[1753865630660,2.98,181.37,181.36,8.6739]
[1753865631458,2.71131941,181.44,181.36,5.5139]
[1753865631762,3.17,181.38,181.37,3.2]
[1753865634564,3.17,181.38,181.36,3.2]
[1753865634863,5.5129,181.4,181.36,3.2]
[1753865635067,3.17,181.39,181.37,3.2]
[1753865635560,3.17,181.39,181.37,8.7137]
[1753865635863,3.17,181.38,181.37,8.7137]
[1753865637561,3.17,181.38,181.37,11.42501941]
[1753865637756,3.17,181.38,181.37,5.91131941]
[1753865640163,3.17,181.38,181.37,11.42501941]
[1753865640361,3.17,181.38,181.37,5.91131941]
[1753865641064,3.17,181.38,181.37,3.2]
[1753865642367,3.17,181.38,181.37,8.7137]
[1753865643172,3.17,181.38,181.37,3.2]
[1753865645078,3.17,181.38,181.37,8.7137]
[1753865645478,3.17,181.37,181.35,123.51131941]
[1753865645674,5.59023522,181.5,181.27,370.88]
[1753865645675,2.71131941,181.4,181.36,117.52]
[1753865645879,3.17,181.39,181.36,117.52]
[1753865647082,3.17,181.37,181.36,117.52]
[1753865647579,3.17,181.37,181.32,5.91131941]
[1753865647883,3.17,181.36,181.29,3.2]
[1753865648078,5.5147,181.34,181.3,123.0358]
[1753865648281,3.17,181.33,181.3,126.2358]
[1753865649286,3.17,181.33,181.31,3.2]
[1753865649880,3.17,181.33,181.31,5.5155]
[1753865650081,3.17,181.33,181.32,3.2]
[1753865650282,3.17,181.33,181.3,120.72]
[1753865650482,3.17,181.33,181.31,3.2]
[1753865650682,3.17,181.32,181.31,3.2]
[1753865651785,3.17,181.32,181.31,8.7155]
[1753865654486,3.17,181.32,181.3,2.71131941]
[1753865654683,3.17,181.32,181.3,5.91131941]
[1753865654885,3.17,181.32,181.31,117.52]
[1753865655285,3.17,181.32,181.3,2.71131941]
[1753865655481,3.17,181.32,181.31,117.52]
[1753865655984,3.17,181.32,181.28,2.71131941]
[1753865656182,3.17,181.32,181.27,370.88]
[1753865656387,5.5164,181.29,181.28,117.52]
[1753865656585,11.39771941,181.29,181.28,117.52]
[1753865656889,8.6867,181.28,181.25,117.52]
[1753865657090,3.17,181.27,181.25,117.52]
[1753865657484,3.17,181.27,181.23,8.7178]
[1753865657683,3.17,181.27,181.25,117.54]
[1753865659682,3.17,181.27,181.24,3.2]
[1753865659878,3.17,181.27,181.25,117.54]
[1753865660086,8.6868,181.27,181.25,117.54]
[1753865660290,3.17,181.26,181.25,117.54]
[1753865661690,8.6871,181.26,181.25,117.54]
[1753865664087,5.5174,181.25,181.24,117.56]
[1753865664893,3.17,181.25,181.24,117.56]
[1753865665392,3.17,181.25,181.24,120.77]
[1753865666087,3.17,181.24,181.22,3.21]
[1753865666293,3.17,181.24,181.23,117.56]
[1753865666793,3.17,181.24,181.23,120.77]
[1753865669198,8.6877,181.24,181.23,120.77]
[1753865669387,8.6877,181.24,181.23,117.56]
[1753865670597,3.17,181.24,181.23,120.77]
[1753865672092,3.17,181.26,181.24,3.21]
[1753865672992,3.17,181.3,181.24,3.21]
[1753865674400,5.5165,181.28,181.24,3.21]
[1753865674596,3.17,181.26,181.24,3.21]
[1753865674899,3.17,181.26,181.25,3.21]
[1753865686398,3.17,181.26,181.23,125.78921941]
[1753865686597,3.17,181.26,181.25,3.21]
[1753865687103,8.6871,181.26,181.25,3.21]
[1753865687304,3.17,181.28,181.23,117.56]
[1753865687504,3.17,181.28,181.23,120.77]
[1753865687700,3.17,181.22,181.2,3.21]
[1753865687898,3.17,181.22,181.19,8.23051941]
[1753865687899,2.71131941,181.27,181.21,120.75]
[1753865688300,5.5181,181.23,181.21,120.75]
[1753865688502,3.17,181.22,181.21,120.75]
[1753865690407,3.17,181.22,181.19,5.92131941]
[1753865690605,3.17,181.22,181.2,117.54]
[1753865691003,2.71131941,181.23,181.12,9.20232307]
[1753865691208,3.17,181.2,181.09,9.20232307]
[1753865691408,3.17,181.2,181.12,2.71131941]
[1753865691604,3.17,181.2,181.13,3.07]
[1753865691808,3.17,181.2,181.15,3.07]
[1753865692313,5.5192,181.19,181.14,118.8]
[1753865692605,3.08,181.18,181.14,118.8]
[1753865692905,3.08,181.16,181.09,5.78131941]
[1753865693099,3.08,181.16,181.12,118.98]
[1753865693506,3.08,181.14,181.12,118.98]
[1753865694102,5.5207,181.15,181.13,3.07]
[1753865694410,5.5207,181.15,181.12,122.05]
[1753865694612,2.71131941,181.19,181.13,3.07]
[1753865694804,3.08,181.18,181.12,122.05]
[1753865695001,3.08,181.18,181.12,118.98]
[1753865695208,3.08,181.16,181.1,3.07]
[1753865695406,3.08,181.16,181.11,119.14]
[1753865696014,3.08,181.15,181.11,119.14]
[1753865696310,3.08,181.15,181.12,3.07]
[1753865697207,3.08,181.15,181.11,119.14]
[1753865697414,3.08,181.15,181.12,3.07]
[1753865697804,3.08,181.15,181.12,8.591]
[1753865698009,3.08,181.17,181.13,3.07]
[1753865698413,2.71131941,181.2,181.13,3.07]
[1753865698608,3.08,181.19,181.13,5.78131941]
[1753865698912,3.08,181.18,181.15,5.5201]
[1753865699112,3.08,181.18,181.16,3.07]
[1753865699314,3.08,181.17,181.13,2.71131941]
[1753865699513,7.34048133,181.26,181.17,3.07]
[1753865699514,3.08,181.21,181.17,3.07]
[1753865699707,3.08,181.21,181.19,3.07]
[1753865700012,3.08,181.21,181.2,3.07]
[1753865700412,2.71131941,181.26,181.2,3.07]
[1753865700413,3.08,181.25,181.2,3.07]
[1753865700912,8.5974,181.25,181.2,8.5889]
[1753865701212,3.08,181.23,181.2,3.07]
[1753865701600,3.08,181.23,181.21,3.07]
[1753865701805,3.08,181.22,181.21,3.07]
[1753865702005,3.08,181.23,181.22,3.07]
[1753865702802,3.08,181.23,181.2,3.07]
[1753865703008,2.71131941,181.26,181.19,3.07]
[1753865703209,3.08,181.23,181.19,119.16]
[1753865703511,3.08,181.23,181.16,119.16]
[1753865703712,3.08,181.23,181.16,122.23]
[1753865704313,8.5987,181.21,181.16,122.23]
[1753865704517,3.08,181.26,181.2,3.07]
[1753865705310,3.08,181.23,181.19,8.23051941]
[1753865705514,3.08,181.23,181.19,2.71131941]
[1753865705716,3.08,181.23,181.19,5.78131941]
[1753865705912,3.08,181.22,181.19,5.78131941]
[1753865706313,8.5983,181.22,181.19,5.78131941]
[1753865706518,8.5983,181.22,181.09,0.96078188]
[1753865706519,3.08,181.2,181.15,5.78131941]
[1753865706716,3.08,181.2,181.15,3.07]
[1753865707016,2.71131941,181.21,181.15,3.07]
[1753865707312,3.08,181.18,181.15,3.07]
[1753865707712,5.5201,181.17,181.15,3.07]
[1753865707911,3.08,181.16,181.15,3.07]
[1753865708722,3.08,181.16,181.13,3.07]
[1753865708909,3.08,181.16,181.12,121.87131941]
[1753865709211,3.08,181.16,181.15,3.07]
[1753865710014,3.08,181.16,181.13,124.6808]
[1753865710213,3.08,181.2,181.13,119.16]
[1753865710518,3.08,181.2,181.13,122.23]
[1753865711018,3.08,181.16,181.14,3.07]
[1753865711218,3.08,181.16,181.15,3.07]
[1753865712612,3.08,181.16,181.13,119.08]
[1753865712813,3.08,181.16,181.11,122.13]
[1753865713012,3.08,181.13,181.11,122.13]
[1753865713212,3.08,181.12,181.11,122.13]
[1753865714219,3.08,181.12,181.11,119.06]
[1753865715021,3.08,181.12,181.11,122.13]
[1753865715321,3.08,181.12,181.09,122.09]
[1753865715914,3.08,181.12,181.09,3.07]